Cogmind - Beta 15 @@@ ROGUE MODE // 2025.10.12 @ 22:45:57 Player: iromakkem Result: Destroyed by as-08655 with Assembled Rifle Performance ------------- Evolutions (0) 0 Regions Visited (2) 400 Robots Destroyed (17) 85 Value Destroyed (349) 349 Prototype IDs (0) 0 Alien Tech Used (0) 0 Bonus (0) 0 TOTAL SCORE: 834 Bonus ------- None Cogmind --------- Core Integrity 0/250 Matter 250/300 Energy 250/250 System Corruption 0% Temperature Cool (0) Movement Walking (190) Ox1 Location -10/Mines Parts ------- > --- POWER (1) -------- Ion Engine > --- PROPULSION (2) --- Aluminum Leg Aluminum Leg > --- UTILITY (2) ------ Large Storage Unit Targeting Computer > --- WEAPON (2) ------- Improved Light Cannon Grenade Launcher > --- INVENTORY (15) --- Light Ion Engine Light Ion Engine Light Treads Light Treads Light Treads Light Treads Cooling System Cooling System Large Matter Pod (150) Targeting Computer Targeting Computer Targeting Computer Improved Light Cannon Improved Light Cannon Grenade Launcher Peak State ------------ > --- POWER ------------ Light Nuclear Core > --- PROPULSION ------- Aluminum Leg Aluminum Leg > --- UTILITY ---------- Large Storage Unit Targeting Computer > --- WEAPON ----------- Particle Gun Assault Rifle > --- INVENTORY -------- Light Ion Engine Light Ion Engine Light Treads Light Treads Light Treads Light Treads Aluminum Leg Large Matter Pod Improved Terrain Scanner Transport Network Coupler Targeting Computer Targeting Computer Targeting Computer Light Assault Rifle Grenade Launcher [Rating: 11] Favorites ----------- Power Ion Engine Engine Ion Engine Power Core Light Nuclear Core Propulsion Aluminum Leg Leg Aluminum Leg Utility Large Storage Unit Device Improved Terrain Scanner Storage Large Storage Unit Processor Targeting Computer Weapon Improved Light Cannon Energy Gun Particle Gun Ballistic Gun Assault Rifle Ballistic Cannon Improved Light Cannon Launcher Grenade Launcher Build | -11 -10 -10 ------- Run | Yrd Mat Min Slots Evolved . | . . . Power . | . . . Propulsion . | . . . Utility . | . . . Weapon . | . . . Parts Attached 21 | 8 12 1 Power 3 | 1 2 . Engine 2 | 1 1 . Core 1 | . 1 . Reactor . | . . . Propulsion 6 | 2 4 . Treads . | . . . Leg 6 | 2 4 . Wheel . | . . . Hover . | . . . Flight . | . . . Utility 4 | 2 2 . Device 1 | 1 . . Storage 2 | 1 1 . Processor 1 | . 1 . Hackware . | . . . Protection . | . . . Artifact . | . . . Weapon 8 | 3 4 1 Energy Gun 3 | 1 2 . Energy Cannon . | . . . Ballistic Gun 2 | 2 . . Ballistic Cannon 2 | . 2 . Launcher 1 | . . 1 Special Weapon . | . . . Impact Weapon . | . . . Slashing Weapon . | . . . Piercing Weapon . | . . . Special Melee Weapon . | . . . Unidentified Prototypes . | . . . Parts Lost 3 | . 3 . Power 1 | . 1 . Propulsion 2 | . 2 . Utility . | . . . Weapon . | . . . Highest Loss Streak 3 | . 3 . To Critical Strikes . | . . . Average Backups 13 | 3 13 15 Power 1 | 1 2 2 Propulsion 4 | 1 5 4 Utility 4 | . 4 6 Weapon 1 | . 1 2 Tool/Special . | . . . Unused Backups 16 | . 2 14 Power 2 | . . 2 Propulsion 5 | . . 5 Utility 8 | . 2 6 Weapon 1 | . . 1 Tool/Special . | . . . Average Slot Usage (%) 99 | . 99 100 Engine 13 | . 13 14 Leg 27 | . 27 28 Device 2 | . 3 . Storage 14 | . 14 14 Processor 11 | . 10 14 Energy Gun 7 | . 13 . Ballistic Gun 5 | . 9 . Ballistic Cannon 14 | . 4 27 Peak Build Rating 11 | 9 11 10 Average Rating 9 | 6 9 9 On Entrance 6 | . 9 10 Naked Turns . | . . . Heaviest Build 33 | 12 33 33 Greatest Support 20 | 20 20 20 Greatest Overweight (x) 2 | . 2 1 Average Overweight (x) . | . . 1 Largest Inventory Capacity 15 | 8 15 15 Average Capacity 14 | 7 14 15 Most Carried 15 | 6 15 15 Average Carried 13 | 3 13 14 Final Capacity 15 | 8 15 15 Final Carried 15 | 6 15 15 Class Distribution -------------------- 100% | Mutant Dominant Class ---------------- Mutant | -10/Materials Mutant | -10/Mines Resources | -11 -10 -10 ----------- Run | Yrd Mat Min Matter Collected 702 | 259 344 99 Remotely . | . . . Salvage Created 555 | 48 399 108 Parts 33 | 6 23 4 Haulers Intercepted 1 | . 1 . Recyclers Shooed . | . . . Parts Field Recycled . | . . . Retrieved Matter . | . . . Parts Self-Destructed . | . . . Prevented . | . . . Kills | -11 -10 -10 ------- Run | Yrd Mat Min Combat Hostiles Destroyed 10 | . 6 4 Guns 6 | . 6 . Cannons 3 | . . 3 AOE 1 | . . 1 Classes Destroyed 5 | 1 3 1 Worker 5 | . 2 3 Tunneler 3 | 2 1 . Hauler 1 | . 1 . Grunt 8 | . 6 2 Assembled 2 | . . 2 Best Kill Streak 4 | 1 3 4 Combat Bots Only 2 | . 2 1 Max Kills in Single Turn 2 | 1 2 2 Gunslinging 1 | . 1 . Exploded 1 | . . 1 Melee . | . . . Uniques/NPCs Destroyed . | . . . Combat | -11 -10 -10 -------- Run | Yrd Mat Min Hostile Shots Fired 90 | . 69 21 Missed 21 | . 14 7 Hits 69 | . 55 14 Melee 1 | . . 1 Projectile 68 | . 55 13 Critical Strikes 2 | . 2 . Damage Taken 957 | . 719 238 Core 250 | . 163 87 Absorbed by Shields . | . . . Core Remaining (%) 100 | 100 . . Volleys Fired 53 | 4 36 13 Largest 2 | 2 2 2 Hottest 85 | 60 85 66 Shots Fired 99 | 8 69 22 Gun 77 | 8 69 . Cannon 18 | . . 18 Launcher 4 | . . 4 Special . | . . . Kinetic 58 | 4 36 18 Thermal 37 | 4 33 . Explosive 4 | . . 4 Electromagnetic . | . . . Robot Hit Streak 6 | 4 6 4 Robot Miss Streak 5 | 1 5 3 Penetration Max . | . . . Secondary Targets 1 | . 1 . Max Gunslinging Chain 1 | . 1 . Shots Hit Robots 55 | 5 40 10 Core Hits 37 | 2 23 12 Critical Kills . | . . . Critical Parts Destroyed . | . . . Critical Strikes 1 | . 1 . Burn 1 | . 1 . Melee Attacks . | . . . Impact . | . . . Slashing . | . . . Piercing . | . . . Sneak Attacks . | . . . Combat Hostiles . | . . . Follow-up Attacks . | . . . Damage Inflicted 1068 | 73 538 457 Guns 588 | 64 524 . Cannons 216 | . . 216 Explosions 240 | . . 240 Melee . | . . . Ramming 24 | 9 14 1 Kinetic 505 | 28 261 216 Thermal 299 | 36 263 . Explosive 240 | . . 240 Electromagnetic . | . . . Impact . | . . . Slashing . | . . . Piercing . | . . . Highest Corruption . | . . . Average Corruption . | . . . Corruption Purged . | . . . Corruption Blocked . | . . . Overload Shots . | . . . Overflow Damage . | . . . Projectiles . | . . . Explosions . | . . . Melee . | . . . Knockbacks 6 | . 1 5 Impact 1 | . 1 . Kinetic 5 | . . 5 Secondary . | . . . Self-Inflicted Damage 40 | . . 40 Shots 1 | . . 1 Rammed . | . . . Targets Rammed 6 | 1 4 1 Kicked 6 | 1 4 1 Crushed . | . . . Highest Temperature 208 | . 208 36 Average Temperature 59 | . 70 17 Received Heat Transfer 480 | . 438 42 Effects 1 | . 1 . Interference 1 | . 1 . Siege Activations . | . . . Martial Activations . | . . . Shielding Activations . | . . . Robots Disrupted . | . . . Combat Hostiles . | . . . Robots Corrupted . | . . . Combat Hostiles . | . . . Parts Fried . | . . . Impact Corruptions . | . . . Robots Melted . | . . . Combat Hostiles . | . . . Parts Melted . | . . . Heat Transferred 769 | 75 694 . Parts Sabotaged . | . . . Parts Stolen . | . . . Parts Stripped . | . . . Power Chain Reactions . | . . . Alert | -11 -10 -10 ------- Run | Yrd Mat Min Maximum Alert Level . | . . . Low Security (%) 100 | 100 100 100 Level 1 . | . . . Level 2 . | . . . Level 3 . | . . . Level 4 . | . . . Level 5 . | . . . High Security . | . . . Max Security . | . . . Peak Influence 55 | 5 55 54 Initial . | . . . Average 6 | . 8 5 Influence Increases 288 | 10 174 104 Destroy 0b10 Robot/C 160 | . 120 40 Destroy 0b10 Robot/NC 45 | 10 20 15 Destroy Leader 42 | . 32 10 Disable Machine 15 | . . 15 Destroy Structure 26 | . 2 24 Influence Decreases 234 | 10 174 50 Time Decay 213 | 10 153 50 Lost Part 21 | . 21 . Squads Dispatched 2 | . 2 . Investigation 1 | . 1 . Extermination . | . . . Reinforcement 1 | . 1 . Assault . | . . . Garrison . | . . . Intercept . | . . . Searches Triggered . | . . . Construction Impeded . | . . . Haulers Reinforced . | . . . Active Scanning Responses . | . . . Cargo Convoy Interrupts . | . . . Stealth | -11 -10 -10 --------- Run | Yrd Mat Min Distress Signals 2 | . 2 . Communications Jammed . | . . . Distress Signals . | . . . Times Spotted 21 | . 15 6 Peak Tracking Total 6 | . 6 3 Tactical Retreats . | . . . Traps | -11 -10 -10 ------- Run | Yrd Mat Min Traps Triggered . | . . . Indirectly . | . . . Trap Hack Attempts . | . . . Triggered . | . . . Disarmed . | . . . Reprogrammed . | . . . Reused . | . . . Traps Extracted . | . . . Installed . | . . . Triggered . | . . . Machines | -11 -10 -10 ---------- Run | Yrd Mat Min Machines Disabled 1 | . . 1 Max in Single Turn 1 | . . 1 Machines Repaired . | . . . Machines Dismantled . | . . . Machines Sabotaged . | . . . Overloaded Fab Kills . | . . . Hacking | -11 -10 -10 --------- Run | Yrd Mat Min Machines Accessed 2 | . 2 . Terminals 2 | . 2 . Fabricators . | . . . Repair Stations . | . . . Recycling Units . | . . . Scanalyzers . | . . . Garrison Access . | . . . Total Hacks 5 | . 5 . Successful . | . . . Failed 5 | . 5 . Catastrophic . | . . . Database Lockouts . | . . . Manual 1 | . 1 . Terminals 5 | . 5 . Fabricators . | . . . Repair Stations . | . . . Recycling Units . | . . . Scanalyzers . | . . . Garrison Access . | . . . Terminal Hacks . | . . . Fabricator Hacks . | . . . Repair Station Hacks . | . . . Recycling Unit Hacks . | . . . Scanalyzer . | . . . Garrison Access Hacks . | . . . Unauthorized Hacks . | . . . Terminals . | . . . Fabricators . | . . . Repair Stations . | . . . Recycling Units . | . . . Scanalyzers . | . . . Garrison Access . | . . . Data Cores Recovered . | . . . Used . | . . . Hacking Detections 2 | . 2 . Full Trace Events 1 | . 1 . Feedback Events . | . . . Feedback Blocked . | . . . Robot Schematics Acquired . | . . . Robots Built . | . . . Authchips . | . . . Time . | . . . Total Robot Build Rating . | . . . Part Schematics Acquired . | . . . Parts Built . | . . . Authchips . | . . . Time . | . . . Total Part Build Rating . | . . . Parts Repaired . | . . . Time . | . . . Parts Recycled . | . . . Recycled Matter . | . . . Retrieved Matter . | . . . Retrieved Components . | . . . Parts Scanalyzed . | . . . Part Schematics Acquired . | . . . Parts Damaged . | . . . Bothacking | -11 -10 -10 ------------ Run | Yrd Mat Min Used RIF Installer . | . . . Robots Hacked . | . . . Non-combat . | . . . Combat . | . . . Robot Hacks Applied . | . . . Relay Couplers Released . | . . . Fabnet Peak Effective % . | . . . Robots Rewired . | . . . Allies Hacked . | . . . Hacks Repelled . | . . . Allies | -11 -10 -10 -------- Run | Yrd Mat Min Total Allies . | . . . Largest Group . | . . . Highest-Rated Group . | . . . Highest-Rated Ally . | . . . Total Orders . | . . . Ally Attacks . | . . . Total Damage . | . . . Kills . | . . . Allies Corrupted . | . . . Allies Melted . | . . . Intel | -11 -10 -10 ------- Run | Yrd Mat Min Active Infowar (turns) 231 | 43 188 . Terrain 231 | 43 188 . Robot Analysis Total . | . . . Derelict Logs Recovered . | . . . Drone Launches . | . . . Drone Recoveries . | . . . Exploration | -11 -10 -10 ------------- Run | Yrd Mat Min Turns Passed 1404 | 87 768 549 Spaces Moved 596 | 49 307 240 Core 4 | 4 . . Treads . | . . . Legs 592 | 45 307 240 Wheels . | . . . Hover . | . . . Flight . | . . . Fastest Speed 50 | 50 120 190 Average Speed 179 | 114 181 190 Slowest Speed 260 | 120 260 190 Overloaded Moves . | . . . Propulsion Burnouts . | . . . Robots Hopped . | . . . Potential Cave-ins . | . . . Cave-ins Triggered . | . . . Exploration Rate (%) 37 | 4 35 73 Regions Visited 2 Branch Regions 1 Pre-discovered Areas . | . . . Known Exits Taken . | . . . Unknown Exits Taken 2 | 1 1 . Scrap Searched 1 | . . 1 Spaces Dug . | . . . Terrain Destroyed 28 | . . 28 Melee . | . . . Projectile . | . . . AOE 28 | . . 28 Terrain Rammed . | . . . Walls Destroyed . | . . . Machines Disabled . | . . . Actions | -11 -10 -10 --------- Run | Yrd Mat Min Total 829 | 68 450 311 Wait 118 | 1 63 54 Move 594 | 48 306 240 Hop . | . . . Pick Up 23 | 6 16 1 Fast Attach 13 | 6 7 . Attach 5 | 1 4 . Detach . | . . . Swap 4 | 1 2 1 Drop 13 | . 12 1 Fire 53 | 4 36 13 Melee . | . . . Ram . | . . . Kick 6 | 1 4 1 Crush . | . . . Escape Stasis . | . . . Rewire . | . . . Trap . | . . . Miscellaneous . | . . . Route ------- -11/Scrapyard -10/Materials -10/Mines History --------- Turn | Location | Event 9 | -11/Scrapyard | Discovered new exit (range 15) 88 | -11/Scrapyard | Entered Materials 301 | -10/Materials | Build established: Mutant 427 | -10/Materials | Core integrity fell below 50% 455 | -10/Materials | Lost 3 parts (1p2n) 660 | -10/Materials | Discovered new exit (range 9) 856 | -10/Materials | Entered Mines 894 | -10/Mines | Assembled infested the area 899 | -10/Mines | Assisted by a Guerilla fighting off Assembled 1399 | -10/Mines | Core integrity fell below 20% 1405 | -10/Mines | Destroyed by as-08655 with Assembled Rifle Last Messages --------------- 01125_ T-07 Excavator is excavating. 01263_ G-47 Trooper destroyed. 01269_ Acquired 16 matter. 01283_ G-34 Mercenary knocked back. 01292_ G-34 Mercenary destroyed. 01300_ Acquired 14 matter. 01302_ Acquired 1 matter. 01310_ Acquired 7 matter. 01319_ as-49866 knocked back. 01325_ as-49866 destroyed. 01328_ Acquired 10 matter. 01330_ Acquired 1 matter. 01346_ Acquired 23 matter. 01392_ K-01 Serf collects debris. 01396_ K-01 Serf destroyed. 01398_ Seismic Survey Station disabled. 01402_ as-69991 destroyed. 01402_ K-01 Serf destroyed. 01404_ U-05 Engineer builds a Wall. 01404_ U-05 Engineer destroyed. Map ----- +----------------------------------------------------+ | ??????????????????????# #?????????? | | ??????????????????????# #?#####???? | | ???????????????# ?????# ## ##??? | | ???????????????# ##### # #??? | | ???????????????# #??? | | ???????????????# ##??? | | ???????????????####### ##??? | | ?????????????????????## ##?? | | ??????????????????????## #?? | | ???????????????????????## ##? | | ???????????????????????## ## | | ??????????????????????## ## | | ??????????????????????# ### | | ??????????????????????# *% | | ???????????????????#### ! # | | ??????????????????## ## ## ### | | ???####???????????# ## #?###?# | | ??## ##????????## #?# #?????# | | ??# #??????## #?# #????## | | ??# ?????## ### ##??## | | ???# ?????# " ## ## ## | | ???# ###??# # | | ???# #### # | | ???# != !%* ###### | | ????#=!" ###= ##????????### | | ????##% @ #?## ##???????????# | | ?????#=%! #?### ##????????????? | | ?????##! #???####?????????????? | | ?????# * #?????? ## ##### | | ?????## !%| #??????"" | | ??????## !%= #??????"" | | ???????# = ##???????" ######## | | ???????# !! #?????????????####?## | | ???????# #?????????????# ## | | ???????# = ??????????????# | | ???????# a ??????????????## | | ???????# % =!??????????????# | | ???????# ##a* #??????????????# | | ???????## ?#*# ??????????????## | | ????????? ??u##????????????????#### | | ?????????#??=?????????????????????? | | ??????????????????????????????????# | | ??????????????????????????????????# | | ??????????????????????????????????# | | ????????????????????????????????### | | ???????????????????????????? | | ???????????????????????????######## | | ??????????????????????????????????# | | ??????????????????????????????????# | | ??????????????????????????????????# | +----------------------------------------------------+ Best States ------------- Heat Dissipation 25 Energy Generation 14 Energy Capacity 250 Matter Stores 300 Matter Capacity 300 Sight Range 16 Terrain Scan Range 16 Terrain Scan Density 10 Evasion (%) 55 Targeting Accuracy 5 Item Schematics ----------------- None Robot Schematics ------------------ None Fabricated ------------ Nothing Repaired ---------- Nothing Alien Tech Used ----------------- None Achievements -------------- None Challenges ------------ None Game ------ Seed CooledSeismicMantle Manual? 0 Play Time 00:12:42 Cumulative 51.3 hours Start 2025.10.12 @ 22:35:33 End 2025.10.12 @ 22:45:57 Sessions 1 Manual Loads 0 Difficulty Rogue Special Mode None Game No. 71 Rogue 71 Adventurer 0 Explorer 0 Win Type - Total 0 Types 0/0/0/0/0/0/0/0/0/0 Lore% 20 Gallery% 24 Achievement% 25 Wizard Run 0 Options --------- Layout 1 ASCII 0 Keyboard 0 Movement Numpad Keybinds 0 Fullscreen 1 Font 16/SmallcapsGlow Map View 50x40 Zoom Use 79% Tactical HUD 1 Map Filters NONE Filters NONE Steam SD RUN: de1fcecf-58d3-44d9-a28a-d471e43df803